Cogmind - Beta 15 @@@ ROGUE MODE // 2025.08.21 @ 09:03:18 Player: WitherScout Result: Self-destructed Performance ------------- Evolutions (2) 1000 Regions Visited (5) 1000 Robots Destroyed (18) 90 Value Destroyed (380) 380 Prototype IDs (0) 0 Alien Tech Used (0) 0 Bonus (0) 0 TOTAL SCORE: 2470 Bonus ------- None Cogmind --------- Core Integrity 380/550 Matter 270/300 Energy 43/125 System Corruption 0% Temperature Warning (303) Movement Walking (120) Location -8/Storage Parts ------- > --- POWER (1) -------- Light Ion Engine > --- PROPULSION (3) --- Improved Aluminum Leg Carbon-fiber Leg > --- UTILITY (4) ------ Heat Sink Medium Storage Unit ECM Suite Light Armor Plating > --- WEAPON (3) ------- Medium Laser Medium Laser > --- INVENTORY (10) --- Light Ion Engine Aluminum Leg Peak State ------------ > --- POWER ------------ Light Ion Engine > --- PROPULSION ------- Aluminum Leg Improved Aluminum Leg Carbon-fiber Leg > --- UTILITY ---------- Heat Sink Heat Sink Medium Storage Unit Light Armor Plating > --- WEAPON ----------- Medium Laser Medium Laser Medium Laser > --- INVENTORY -------- Light Ion Engine Aluminum Leg Medium Laser [Rating: 14] Favorites ----------- Power Ion Engine Engine Ion Engine Propulsion Aluminum Leg Leg Aluminum Leg Utility Medium Storage Unit Device Heat Sink Storage Medium Storage Unit Protection Light Armor Plating Weapon Medium Laser Energy Gun Medium Laser Ballistic Gun Assault Rifle Launcher Grenade Launcher Build | -11 -10 -10 -9 -8 -8 ------- Run | Yrd Mat Min Mat Mat Sto Slots Evolved 4 | . . . 2 2 . Power . | . . . . . . Propulsion 1 | . . . 1 . . Utility 2 | . . . . 2 . Weapon 1 | . . . 1 . . Parts Attached 22 | 6 3 . 3 6 4 Power 2 | 1 . . . 1 . Engine 2 | 1 . . . 1 . Core . | . . . . . . Reactor . | . . . . . . Propulsion 4 | 2 . . . . 2 Treads . | . . . . . . Leg 4 | 2 . . . . 2 Wheel . | . . . . . . Hover . | . . . . . . Flight . | . . . . . . Utility 7 | 1 1 . 1 3 1 Device 3 | . . . 1 1 1 Storage 2 | 1 1 . . . . Processor . | . . . . . . Hackware . | . . . . . . Protection 2 | . . . . 2 . Artifact . | . . . . . . Weapon 9 | 2 2 . 2 2 1 Energy Gun 6 | . 2 . 2 1 1 Energy Cannon . | . . . . . . Ballistic Gun 2 | 2 . . . . . Ballistic Cannon . | . . . . . . Launcher 1 | . . . . 1 . Special Weapon . | . . . . . . Impact Weapon . | . . . . . . Slashing Weapon . | . . . . . . Piercing Weapon . | . . . . . . Special Melee Weapon . | . . . . . . Unidentified Prototypes . | . . . . . . Parts Lost 9 | . . . . 5 4 Power 1 | . . . . 1 . Propulsion 1 | . . . . . 1 Utility 2 | . . . . 1 1 Weapon 5 | . . . . 3 2 Highest Loss Streak 5 | . . . . 5 4 To Critical Strikes . | . . . . . . Average Backups 4 | 1 3 6 6 4 3 Power 1 | 1 2 2 2 1 1 Propulsion . | . . . . . . Utility . | . . . . . . Weapon 2 | . 1 4 4 2 . Tool/Special . | . . . . . . Unused Backups 1 | . . . . . 1 Power 1 | . . . . . 1 Propulsion . | . . . . . . Utility . | . . . . . . Weapon . | . . . . . . Tool/Special . | . . . . . . Average Slot Usage (%) 84 | . 84 85 83 80 96 Engine 11 | . 14 14 11 8 9 Leg 23 | . 28 28 22 18 24 Device 6 | . . . 7 11 18 Storage 11 | . 14 14 11 9 9 Protection 3 | . . . . 6 9 Energy Gun 24 | . 10 28 31 26 26 Ballistic Gun 3 | . 16 . . . . Peak Build Rating 14 | 6 7 6 8 10 14 Average Rating 7 | 4 5 6 7 8 13 On Entrance 6 | . 6 6 6 8 10 Naked Turns . | . . . . . . Heaviest Build 25 | 13 19 19 22 25 25 Greatest Support 38 | 20 20 20 20 20 38 Greatest Overweight (x) 3 | 3 . . 1 1 1 Average Overweight (x) . | . . . . . . Largest Inventory Capacity 10 | 8 10 10 10 10 10 Average Capacity 9 | 7 9 10 10 10 10 Most Carried 8 | 2 8 7 7 6 4 Average Carried 4 | 1 3 6 6 4 3 Final Capacity 10 | 8 10 10 10 10 10 Final Carried 7 | 2 6 7 7 2 2 Class Distribution -------------------- 52% | Mutant 20% | Tank 14% | Gunner 12% | Scavenger-Tank Dominant Class ---------------- Mutant | -10/Materials Mutant | -10/Mines Gunner | -9/Materials Tank | -8/Materials Tank | -8/Storage Resources | -11 -10 -10 -9 -8 -8 ----------- Run | Yrd Mat Min Mat Mat Sto Matter Collected 443 | 167 . 35 58 183 . Remotely . | . . . . . . Salvage Created 528 | 133 . 35 58 244 58 Parts 37 | 16 . 4 5 12 . Haulers Intercepted . | . . . . . . Recyclers Shooed . | . . . . . . Parts Field Recycled . | . . . . . . Retrieved Matter . | . . . . . . Parts Self-Destructed . | . . . . . . Prevented . | . . . . . . Kills | -11 -10 -10 -9 -8 -8 ------- Run | Yrd Mat Min Mat Mat Sto Combat Hostiles Destroyed 12 | . . 3 1 7 1 Guns 10 | . . 3 1 6 . Classes Destroyed 6 | 2 . 1 1 2 . Builder 1 | . . . . 1 . Tunneler 4 | 4 . . . . . Recycler 1 | 1 . . . . . Swarmer 6 | . . 3 . 3 . Grunt 4 | . . . . 3 1 Sentry 2 | . . . 1 1 . Best Kill Streak 5 | 5 . 3 1 4 1 Combat Bots Only 3 | . . 3 1 3 1 Max Kills in Single Turn 2 | 1 . 2 1 1 1 Gunslinging 1 | . . 1 . . . Exploded . | . . . . . . Melee . | . . . . . . Uniques/NPCs Destroyed . | . . . . . . Combat | -11 -10 -10 -9 -8 -8 -------- Run | Yrd Mat Min Mat Mat Sto Hostile Shots Fired 109 | . . 8 8 61 32 Missed 38 | . . 1 6 21 10 Hits 71 | . . 7 2 40 22 Projectile 71 | . . 7 2 40 22 Critical Strikes 1 | . . . . 1 . Damage Taken 1089 | . . 61 30 635 363 Core 170 | . . . . 120 50 Absorbed by Shields . | . . . . . . Core Remaining (%) 100 | 100 . 100 100 . . Volleys Fired 43 | 12 . 3 2 20 6 Largest 3 | 2 . 2 3 3 3 Hottest 150 | 40 . 100 150 150 150 Shots Fired 111 | 24 . 6 6 59 16 Gun 110 | 24 . 6 6 58 16 Cannon . | . . . . . . Launcher 1 | . . . . 1 . Special . | . . . . . . Kinetic 24 | 24 . . . . . Thermal 86 | . . 6 6 58 16 Explosive 1 | . . . . 1 . Electromagnetic . | . . . . . . Robot Hit Streak 8 | 2 . 3 6 6 8 Robot Miss Streak 4 | 2 . 1 1 4 1 Penetration Max . | . . . . . . Secondary Targets 3 | . . 1 . 1 1 Max Gunslinging Chain 1 | . . 1 . 1 1 Shots Hit Robots 62 | 9 . 4 5 32 12 Core Hits 29 | 6 . 3 2 15 3 Critical Kills . | . . . . . . Critical Parts Destroyed . | . . . . . . Critical Strikes 2 | . . . . 1 1 Burn 2 | . . . . 1 1 Melee Attacks . | . . . . . . Impact . | . . . . . . Slashing . | . . . . . . Piercing . | . . . . . . Sneak Attacks . | . . . . . . Combat Hostiles . | . . . . . . Follow-up Attacks . | . . . . . . Damage Inflicted 892 | 98 . 50 62 531 151 Guns 783 | 98 . 50 62 422 151 Cannons . | . . . . . . Explosions 109 | . . . . 109 . Melee . | . . . . . . Ramming . | . . . . . . Kinetic 98 | 98 . . . . . Thermal 685 | . . 50 62 422 151 Explosive 109 | . . . . 109 . Electromagnetic . | . . . . . . Impact . | . . . . . . Slashing . | . . . . . . Piercing . | . . . . . . Highest Corruption . | . . . . . . Average Corruption . | . . . . . . Corruption Purged . | . . . . . . Corruption Blocked . | . . . . . . Overload Shots . | . . . . . . Overflow Damage . | . . . . . . Projectiles . | . . . . . . Explosions . | . . . . . . Melee . | . . . . . . Knockbacks . | . . . . . . Impact . | . . . . . . Kinetic . | . . . . . . Secondary . | . . . . . . Self-Inflicted Damage . | . . . . . . Shots . | . . . . . . Rammed . | . . . . . . Targets Rammed . | . . . . . . Kicked . | . . . . . . Crushed . | . . . . . . Highest Temperature 507 | . . 117 162 507 294 Average Temperature 197 | . . 59 87 244 164 Received Heat Transfer 513 | . . . 18 297 198 Effects 6 | . . . . 4 2 Shutdowns 2 | . . . . 2 . Energy Bleed 1 | . . . . 1 . Interference 2 | . . . . . 2 Damage (minor) 1 | . . . . 1 . Siege Activations . | . . . . . . Martial Activations . | . . . . . . Shielding Activations . | . . . . . . Robots Disrupted . | . . . . . . Combat Hostiles . | . . . . . . Robots Corrupted . | . . . . . . Combat Hostiles . | . . . . . . Parts Fried . | . . . . . . Impact Corruptions . | . . . . . . Robots Melted 2 | . . . . 1 1 Combat Hostiles 2 | . . . . 1 1 Parts Melted 5 | . . . . 1 4 Heat Transferred 2183 | . . 148 185 1332 518 Parts Sabotaged . | . . . . . . Parts Stolen . | . . . . . . Parts Stripped . | . . . . . . Power Chain Reactions . | . . . . . . Alert | -11 -10 -10 -9 -8 -8 ------- Run | Yrd Mat Min Mat Mat Sto Maximum Alert Level . | . . . . . . Low Security (%) 100 | 100 100 100 100 100 100 Level 1 . | . . . . . . Level 2 . | . . . . . . Level 3 . | . . . . . . Level 4 . | . . . . . . Level 5 . | . . . . . . High Security . | . . . . . . Max Security . | . . . . . . Peak Influence 88 | 10 6 70 30 88 20 Initial 20 | . 6 . . . 20 Average 19 | 2 . 25 4 49 6 Influence Increases 343 | 25 . 70 30 198 20 Destroy 0b10 Robot/C 240 | . . 60 20 140 20 Destroy 0b10 Robot/NC 30 | 25 . . . 5 . Destroy Leader 50 | . . 10 10 30 . Destroy Structure 8 | . . . . 8 . Lose Combat Pursuer 15 | . . . . 15 . Influence Decreases 343 | 15 10 70 30 150 68 Entered New Map 32 | . 4 . . . 28 Time Decay 251 | 15 6 70 30 100 30 Lost Part 60 | . . . . 50 10 Squads Dispatched 1 | . . . . 1 . Investigation . | . . . . . . Extermination . | . . . . . . Reinforcement 1 | . . . . 1 . Assault . | . . . . . . Garrison . | . . . . . . Intercept . | . . . . . . Searches Triggered . | . . . . . . Construction Impeded . | . . . . . . Haulers Reinforced . | . . . . . . Active Scanning Responses . | . . . . . . Cargo Convoy Interrupts . | . . . . . . Stealth | -11 -10 -10 -9 -8 -8 --------- Run | Yrd Mat Min Mat Mat Sto Distress Signals . | . . . . . . Communications Jammed . | . . . . . . Distress Signals . | . . . . . . Times Spotted 18 | . . 3 2 10 3 Peak Tracking Total 4 | . . 1 1 4 3 Tactical Retreats 1 | . . . . 1 . Traps | -11 -10 -10 -9 -8 -8 ------- Run | Yrd Mat Min Mat Mat Sto Traps Triggered . | . . . . . . Indirectly . | . . . . . . Trap Hack Attempts . | . . . . . . Triggered . | . . . . . . Disarmed . | . . . . . . Reprogrammed . | . . . . . . Reused . | . . . . . . Traps Extracted . | . . . . . . Installed . | . . . . . . Triggered . | . . . . . . Machines | -11 -10 -10 -9 -8 -8 ---------- Run | Yrd Mat Min Mat Mat Sto Machines Disabled . | . . . . . . Max in Single Turn . | . . . . . . Machines Repaired . | . . . . . . Machines Dismantled . | . . . . . . Machines Sabotaged . | . . . . . . Overloaded Fab Kills . | . . . . . . Hacking | -11 -10 -10 -9 -8 -8 --------- Run | Yrd Mat Min Mat Mat Sto Machines Accessed . | . . . . . . Terminals . | . . . . . . Fabricators . | . . . . . . Repair Stations . | . . . . . . Recycling Units . | . . . . . . Scanalyzers . | . . . . . . Garrison Access . | . . . . . . Total Hacks . | . . . . . . Successful . | . . . . . . Failed . | . . . . . . Catastrophic . | . . . . . . Database Lockouts . | . . . . . . Manual . | . . . . . . Terminals . | . . . . . . Fabricators . | . . . . . . Repair Stations . | . . . . . . Recycling Units . | . . . . . . Scanalyzers . | . . . . . . Garrison Access . | . . . . . . Terminal Hacks . | . . . . . . Fabricator Hacks . | . . . . . . Repair Station Hacks . | . . . . . . Recycling Unit Hacks . | . . . . . . Scanalyzer . | . . . . . . Garrison Access Hacks . | . . . . . . Unauthorized Hacks . | . . . . . . Terminals . | . . . . . . Fabricators . | . . . . . . Repair Stations . | . . . . . . Recycling Units . | . . . . . . Scanalyzers . | . . . . . . Garrison Access . | . . . . . . Data Cores Recovered . | . . . . . . Used . | . . . . . . Hacking Detections . | . . . . . . Full Trace Events . | . . . . . . Feedback Events . | . . . . . . Feedback Blocked . | . . . . . . Robot Schematics Acquired . | . . . . . . Robots Built . | . . . . . . Authchips . | . . . . . . Time . | . . . . . . Total Robot Build Rating . | . . . . . . Part Schematics Acquired . | . . . . . . Parts Built . | . . . . . . Authchips . | . . . . . . Time . | . . . . . . Total Part Build Rating . | . . . . . . Parts Repaired . | . . . . . . Time . | . . . . . . Parts Recycled . | . . . . . . Recycled Matter . | . . . . . . Retrieved Matter . | . . . . . . Retrieved Components . | . . . . . . Parts Scanalyzed . | . . . . . . Part Schematics Acquired . | . . . . . . Parts Damaged . | . . . . . . Bothacking | -11 -10 -10 -9 -8 -8 ------------ Run | Yrd Mat Min Mat Mat Sto Used RIF Installer . | . . . . . . Robots Hacked . | . . . . . . Non-combat . | . . . . . . Combat . | . . . . . . Robot Hacks Applied . | . . . . . . Relay Couplers Released . | . . . . . . Fabnet Peak Effective % . | . . . . . . Robots Rewired . | . . . . . . Allies Hacked . | . . . . . . Hacks Repelled . | . . . . . . Allies | -11 -10 -10 -9 -8 -8 -------- Run | Yrd Mat Min Mat Mat Sto Total Allies . | . . . . . . Largest Group . | . . . . . . Highest-Rated Group . | . . . . . . Highest-Rated Ally . | . . . . . . Total Orders . | . . . . . . Ally Attacks . | . . . . . . Total Damage . | . . . . . . Kills . | . . . . . . Allies Corrupted . | . . . . . . Allies Melted . | . . . . . . Intel | -11 -10 -10 -9 -8 -8 ------- Run | Yrd Mat Min Mat Mat Sto Active Infowar (turns) 45 | . . . . . 45 ECM 45 | . . . . . 45 Robot Analysis Total . | . . . . . . Derelict Logs Recovered 1 | . . 1 . . . Drone Launches . | . . . . . . Drone Recoveries . | . . . . . . Exploration | -11 -10 -10 -9 -8 -8 ------------- Run | Yrd Mat Min Mat Mat Sto Turns Passed 982 | 98 165 205 162 252 100 Spaces Moved 538 | 39 128 138 85 93 55 Core 16 | 16 . . . . . Treads . | . . . . . . Legs 522 | 23 128 138 85 93 55 Wheels . | . . . . . . Hover . | . . . . . . Flight . | . . . . . . Fastest Speed 50 | 50 120 120 120 120 120 Average Speed 141 | 137 120 120 173 180 130 Slowest Speed 200 | 200 120 120 190 190 190 Overloaded Moves . | . . . . . . Propulsion Burnouts . | . . . . . . Robots Hopped . | . . . . . . Potential Cave-ins . | . . . . . . Cave-ins Triggered . | . . . . . . Exploration Rate (%) 18 | 5 21 35 15 11 22 Regions Visited 5 Branch Regions 2 Pre-discovered Areas . | . . . . . . Known Exits Taken . | . . . . . . Unknown Exits Taken 5 | 1 1 1 1 1 . Scrap Searched . | . . . . . . Spaces Dug . | . . . . . . Terrain Destroyed 7 | . . . . 7 . Melee . | . . . . . . Projectile . | . . . . . . AOE 7 | . . . . 7 . Terrain Rammed . | . . . . . . Walls Destroyed . | . . . . . . Machines Disabled . | . . . . . . Actions | -11 -10 -10 -9 -8 -8 --------- Run | Yrd Mat Min Mat Mat Sto Total 667 | 58 141 171 95 132 70 Wait 49 | . . 30 4 12 3 Move 533 | 38 127 137 84 92 55 Hop . | . . . . . . Pick Up 10 | 2 6 1 1 . . Fast Attach 12 | 6 1 . 1 2 2 Attach 12 | . 3 . 2 5 2 Detach 3 | . 1 . 1 . 1 Swap 2 | . . . . 1 1 Drop 3 | . 3 . . . . Fire 43 | 12 . 3 2 20 6 Melee . | . . . . . . Ram . | . . . . . . Kick . | . . . . . . Crush . | . . . . . . Escape Stasis . | . . . . . . Rewire . | . . . . . . Trap . | . . . . . . Miscellaneous . | . . . . . . Route ------- -11/Scrapyard -10/Materials (discovered 2 exits: [*Min x2]) -10/Mines -9/Materials -8/Materials -8/Storage History --------- Turn | Location | Event 21 | -11/Scrapyard | Discovered new exit (range 15) 99 | -11/Scrapyard | Entered Materials 127 | -10/Materials | Discovered new exit (range 16) 167 | -10/Materials | Discovered new exit (range 16) 264 | -10/Materials | Entered Mines 316 | -10/Mines | Build established: Mutant 318 | -10/Mines | Found a hidden stash of uninstalled traps 375 | -10/Mines | Learned Materials trap positions 407 | -10/Mines | YI-UF0 nonchalantly dropped a Grenade Launcher on the ground 460 | -10/Mines | Discovered new exit (range 8) 469 | -10/Mines | Entered Materials 469 | -9/Materials | Evolved 2 slots: Propulsion x1, Weapon x1 470 | -9/Materials | Loaded intel: 12 trap records 602 | -9/Materials | Discovered new exit (range 16) 631 | -9/Materials | Entered another Materials area 631 | -8/Materials | Evolved 2 slots: Utility x2 830 | -8/Materials | Lost 5 parts (1p1u3w) 855 | -8/Materials | Discovered new exit (range 16) 883 | -8/Materials | Entered Storage 983 | -8/Storage | Self-destructed Last Messages --------------- LOCATION=UNKNOWN GOAL=ESCAPE Acquired Carbon-fiber Leg. Acquired ECM Suite. Heat Sink destroyed. K-01 Serf collects debris. K-01 Serf destroyed. Aluminum Leg destroyed. Med. Laser destroyed. Melted Aluminum Leg. G-47 Trooper suffers critical hit (Burn). G-47 Trooper critical meltdown. Aluminum Leg melted. Particle Gun melted. Lgt. Nuclear Core melted. Switching to secondary target: G-47 Trooper. Overheating: System interference. Med. Laser temporarily disabled. Heat Sink temporarily disabled. Med. Laser destroyed. Map ----- +----------------------------------------------------+ | # # ####"T"###??????????????????? | | # # # #??????????????????? | | # + # """#??????????????????? | | # # # """#??????????????????? | | # # # """#??????????????????? | | # + + #??????????????????? | | # # # """#??????????????????? | | # [ # # """#??????????????????? | | # ] # # """#??????????????????? | | ######## # #??????????????????? | | ???????# ####" "###??????????????????? | | ???????# #???"R"#????????????????????? | | ???????# #????""#????????????????????? | | ???????# ###############?????????????? | | ???????# ^ ???????????? | | ???????# ???????????? | | ???????# """"" """??????????????? | | ???????###### """"" """??????????????? | | ????????##### """"" """"?????????????? | | ???????## # """"" """"" ?????????? | | ???????#T + ?????????? | | ???????##"### ????????? | | ????????????# ????????? | | ????????????# ????????? | | ????????????### ######+##"Y"???????????? | | ??????????????#@#??????????????????????? | | ??????????????#/#??????????????????????? | | ?????????????? % ??????????????????????? | | ??????????????*% ??????????????????????? | | ?????????????! ?????????????????????? | | ?????????????| ?????????????????????? | | ???????????? g = #????????????????????? | | ???????????? g | #????????????????????? | | ??????????? #????????????????????? | | ??????????? #????????????????????? | | ??????????###+###r#????????????????????? | | ????????????????? ????????????????????? | | ????????????????? ????????????????????? | | ????????????????? ????????????????????? | | ?????????????????? ????????????????????? | | ???????????????????????????????????????? | | ???????????????????????????????????????? | | ???????????????????????????????????????? | | ???????????????????????????????????????? | | ???????????????????????????????????????? | | ???????????????????????????????????????? | | ???????????????????????????????????????? | | ???????????????????????????????????????? | | ???????????????????????????????????????? | | ???????????????????????????????????????? | +----------------------------------------------------+ Best States ------------- Heat Dissipation 51 Energy Generation 10 Energy Capacity 250 Matter Stores 300 Matter Capacity 300 Sight Range 16 Terrain Scan Density 10 ECM Strength 1 Armor Coverage 150 Evasion (%) 55 Item Schematics ----------------- None Robot Schematics ------------------ None Fabricated ------------ Nothing Repaired ---------- Nothing Alien Tech Used ----------------- None Achievements -------------- None Challenges ------------ None Game ------ Seed RegenerativeHeavyField Manual? 0 Play Time 00:12:36 Cumulative 17.3 hours Start 2025.08.17 @ 14:58:42 End 2025.08.21 @ 09:03:18 Sessions 2 Manual Loads 0 Difficulty Rogue Special Mode None Game No. 35 Rogue 35 Adventurer 0 Explorer 0 Win Type - Total 0 Types 0/0/0/0/0/0/0/0/0/0 Lore% 4 Gallery% 17 Achievement% 19 Wizard Run 0 Options --------- Layout 1 ASCII 1 Keyboard 0 Movement Numpad Keybinds 0 Fullscreen 1 Font 24/Cog Map View 50x35 Zoom Use 0% Tactical HUD 0 Map Filters NONE Filters NONE Steam 0 RUN: 23600f27-bfd5-49e1-a5dc-6cea6214a41f